Cogmind - Beta 14 @@@ ROGUE MODE // 2025.03.22 @ 22:01:22 Player: Wodorek Result: Self-destructed Performance ------------- Evolutions (2) 1000 Regions Visited (3) 600 Robots Destroyed (35) 175 Value Destroyed (1063) 1063 Prototype IDs (2) 40 Alien Tech Used (0) 0 Bonus (0) 0 TOTAL SCORE: 2878 Bonus ------- None Cogmind --------- Core Integrity 492/550 Matter 252/300 Energy 160/160 System Corruption 0% Temperature Hot (237) Movement Treading (163) Location -8/Materials Parts ------- > --- POWER (1) -------- Light Nuclear Core > --- PROPULSION (3) --- Light Treads Light Treads Armored Treads > --- UTILITY (4) ------ Improved Heat Sink Medium Storage Unit Improved Targeting Computer Improved Targeting Computer > --- WEAPON (3) ------- Enhanced Autogun > --- INVENTORY (10) --- Advanced Treads Advanced Visual Processing Unit Peak State ------------ > --- POWER ------------ Light Nuclear Core > --- PROPULSION ------- Light Treads Light Treads Armored Treads > --- UTILITY ---------- Improved Heat Sink Medium Storage Unit Improved Targeting Computer Improved Targeting Computer > --- WEAPON ----------- EM Shotgun Particle Gun Enhanced Autogun > --- INVENTORY -------- Advanced Treads Advanced Visual Processing Unit [Rating: 24] Favorites ----------- Power Light Nuclear Core Engine Light Ion Engine Power Core Light Nuclear Core Propulsion Light Treads Treads Light Treads Utility Improved Targeting Computer Device Structural Scanner Storage Medium Storage Unit Processor Improved Targeting Computer Protection Light Armor Plating Weapon Assault Rifle Energy Gun Particle Gun Energy Cannon Advanced Beam Cannon Ballistic Gun Assault Rifle Launcher Grenade Launcher Build | -11 -10 -9 -8 ------- Run | Yrd Mat Mat Mat Slots Evolved 4 | . . 2 2 Power . | . . . . Propulsion 1 | . . . 1 Utility 2 | . . 2 . Weapon 1 | . . . 1 Parts Attached 24 | 4 3 13 4 Power 3 | 1 . 2 . Engine 2 | 1 . 1 . Core 1 | . . 1 . Reactor . | . . . . Propulsion 5 | 2 . 2 1 Treads 5 | 2 . 2 1 Leg . | . . . . Wheel . | . . . . Hover . | . . . . Flight . | . . . . Utility 8 | . 2 5 1 Device 3 | . 2 . 1 Storage 1 | . . 1 . Processor 2 | . . 2 . Hackware . | . . . . Protection 2 | . . 2 . Artifact . | . . . . Weapon 8 | 1 1 4 2 Energy Gun 3 | . . 2 1 Energy Cannon 2 | . . 2 . Ballistic Gun 2 | 1 . . 1 Ballistic Cannon . | . . . . Launcher 1 | . 1 . . Special Weapon . | . . . . Impact Weapon . | . . . . Slashing Weapon . | . . . . Piercing Weapon . | . . . . Special Melee Weapon . | . . . . Unidentified Prototypes 2 | . . 1 1 Parts Lost 10 | . 2 5 3 Power 1 | . 1 . . Propulsion 2 | . . 2 . Utility 3 | . . 2 1 Weapon 4 | . 1 1 2 Highest Loss Streak 4 | . 2 4 2 To Critical Strikes . | . . . . Average Slot Usage (%) 80 | . 88 68 96 Engine 3 | . 13 . . Core 3 | . . 2 9 Treads 23 | . 28 21 25 Device 7 | . 20 5 . Storage 5 | . . 5 9 Processor 8 | . . 8 18 Protection 5 | . . 6 7 Energy Gun 6 | . . 4 16 Energy Cannon 5 | . . 7 5 Ballistic Gun 8 | . 14 8 3 Launcher 2 | . 12 . . Peak Build Rating 24 | 4 7 16 24 Average Rating 11 | 3 6 9 20 On Entrance 6 | . 4 5 16 Naked Turns . | . . . . Heaviest Build 28 | 5 10 27 28 Greatest Support 60 | 40 40 40 60 Greatest Overweight (x) . | . . . . Average Overweight (x) . | . . . . Largest Inventory Capacity 10 | 5 5 10 10 Average Capacity 7 | 5 5 7 10 Most Carried 3 | . . 3 3 Average Carried . | . . . 1 Final Capacity 10 | 5 5 10 10 Final Carried 2 | . . . 2 Class Distribution -------------------- 81% | Mutant 18% | Gunner Dominant Class ---------------- Mutant | -10/Materials Mutant | -9/Materials Gunner | -8/Materials Resources | -11 -10 -9 -8 ----------- Run | Yrd Mat Mat Mat Matter Collected 609 | 221 . 309 79 Remotely . | . . . . Salvage Created 1127 | . 68 735 324 Parts 73 | . 8 42 23 Haulers Intercepted 1 | . . 1 . Recyclers Shooed 1 | . . . 1 Parts Field Recycled . | . . . . Retrieved Matter . | . . . . Parts Self-Destructed . | . . . . Prevented . | . . . . Kills | -11 -10 -9 -8 ------- Run | Yrd Mat Mat Mat Combat Hostiles Destroyed 27 | . 5 14 8 Guns 14 | . 1 6 7 Cannons 8 | . . 7 1 AOE 4 | . 4 . . Classes Destroyed 7 | . 3 2 2 Builder 1 | . . . 1 Hauler 1 | . . 1 . Watcher 6 | . 1 3 2 Swarmer 6 | . 3 . 3 Grunt 16 | . 2 10 4 Duelist 1 | . . . 1 Sentry 4 | . . 4 . Best Kill Streak 6 | . 6 5 4 Combat Bots Only 5 | . 5 4 3 Max Kills in Single Turn 2 | . 2 2 2 Gunslinging . | . . . . Exploded 2 | . 2 . . Melee . | . . . . Uniques/NPCs Destroyed . | . . . . Combat | -11 -10 -9 -8 -------- Run | Yrd Mat Mat Mat Hostile Shots Fired 146 | . 24 82 40 Missed 34 | . 5 23 6 Damage Taken 1512 | . 232 765 515 Core 240 | . 22 160 58 Absorbed by Shields . | . . . . Core Remaining (%) 83 | 100 91 60 . Volleys Fired 76 | . 9 39 28 Largest 3 | . 2 2 3 Hottest 178 | . 50 133 178 Shots Fired 146 | . 15 64 67 Gun 111 | . 9 40 62 Cannon 29 | . . 24 5 Launcher 6 | . 6 . . Special . | . . . . Kinetic 59 | . 9 27 23 Thermal 65 | . . 37 28 Explosive 6 | . 6 . . Electromagnetic 16 | . . . 16 Robot Hit Streak 10 | . 3 7 10 Robot Miss Streak 4 | . 1 2 4 Penetration Max . | . . . . Secondary Targets 3 | . . 1 2 Max Gunslinging Chain 1 | . . 1 1 Shots Hit Robots 91 | . 5 41 45 Core Hits 57 | . 10 23 24 Critical Kills 1 | . . 1 . Critical Parts Destroyed 1 | . 1 . . Critical Strikes 3 | . 1 1 1 Burn 1 | . . . 1 Meltdown 1 | . . 1 . Destroy 1 | . 1 . . Melee Attacks . | . . . . Impact . | . . . . Slashing . | . . . . Piercing . | . . . . Sneak Attacks . | . . . . Combat Hostiles . | . . . . Follow-up Attacks . | . . . . Damage Inflicted 2113 | . 489 745 879 Guns 1087 | . 37 387 663 Cannons 410 | . . 349 61 Explosions 606 | . 451 . 155 Melee . | . . . . Ramming 10 | . 1 9 . Kinetic 493 | . 37 211 245 Thermal 980 | . . 525 455 Explosive 451 | . 451 . . Electromagnetic 179 | . . . 179 Impact . | . . . . Slashing . | . . . . Piercing . | . . . . Highest Corruption . | . . . . Average Corruption . | . . . . Corruption Purged . | . . . . Corruption Blocked . | . . . . Overload Shots . | . . . . Overflow Damage 21 | . 21 . . Projectiles . | . . . . Explosions 21 | . 21 . . Melee . | . . . . Knockbacks . | . . . . Impact . | . . . . Kinetic . | . . . . Secondary . | . . . . Self-Inflicted Damage 11 | . 11 . . Shots 1 | . 1 . . Rammed 3 | . 1 2 . Targets Rammed 3 | . 1 2 . Kicked . | . . . . Crushed . | . . . . Highest Temperature 456 | . 38 336 456 Average Temperature 142 | . 24 115 187 Received Heat Transfer 738 | . 123 354 261 Effects 6 | . . . 6 Shutdowns 2 | . . . 2 Energy Bleed 3 | . . . 3 Damage (minor) 1 | . . . 1 Siege Activations . | . . . . Robots Corrupted . | . . . . Combat Hostiles . | . . . . Parts Fried . | . . . . Impact Corruptions . | . . . . Robots Melted 1 | . . 1 . Combat Hostiles 1 | . . 1 . Parts Melted 3 | . . 3 . Heat Transferred 1926 | . . 1036 890 Parts Sabotaged . | . . . . Parts Stolen . | . . . . Parts Stripped . | . . . . Power Chain Reactions 2 | . . . 2 Alert | -11 -10 -9 -8 ------- Run | Yrd Mat Mat Mat Peak Influence 381 | . 178 325 381 Initial 131 | . . 66 131 Average 168 | . 97 181 232 Maximum Alert Level 1 | . . 1 1 Low Security (%) 56 | 100 100 47 29 Level 1 43 | . . 52 70 Level 2 . | . . . . Level 3 . | . . . . Level 4 . | . . . . Level 5 . | . . . . High Security . | . . . . Max Security . | . . . . Squads Dispatched 6 | . 1 2 3 Investigation 1 | . . 1 . Extermination . | . . . . Reinforcement 4 | . 1 1 2 Assault . | . . . . Garrison 1 | . . . 1 Intercept . | . . . . Searches Triggered . | . . . . Construction Impeded 1 | . . . 1 Haulers Reinforced . | . . . . Active Scanning Responses . | . . . . Cargo Convoy Interrupts . | . . . . Stealth | -11 -10 -9 -8 --------- Run | Yrd Mat Mat Mat Distress Signals 4 | . 1 2 1 Communications Jammed . | . . . . Distress Signals . | . . . . Times Spotted 45 | . 8 22 15 Peak Tracking Total 6 | . 6 6 5 Tactical Retreats 3 | . 1 . 2 Traps | -11 -10 -9 -8 ------- Run | Yrd Mat Mat Mat Traps Triggered 1 | . . 1 . Indirectly . | . . . . Trap Hack Attempts . | . . . . Triggered . | . . . . Disarmed . | . . . . Reprogrammed . | . . . . Reused . | . . . . Traps Extracted . | . . . . Installed . | . . . . Triggered . | . . . . Machines | -11 -10 -9 -8 ---------- Run | Yrd Mat Mat Mat Machines Disabled 2 | . . 1 1 Max in Single Turn 1 | . . 1 1 Machines Repaired . | . . . . Machines Dismantled . | . . . . Machines Sabotaged . | . . . . Overloaded Fab Kills . | . . . . Hacking | -11 -10 -9 -8 --------- Run | Yrd Mat Mat Mat Machines Accessed 3 | . 1 1 1 Terminals 1 | . 1 . . Fabricators . | . . . . Repair Stations 1 | . . . 1 Recycling Units . | . . . . Scanalyzers 1 | . . 1 . Garrison Access . | . . . . Total Hacks 7 | . 2 2 3 Successful 4 | . 1 2 1 Failed 3 | . 1 . 2 Catastrophic . | . . . . Database Lockouts . | . . . . Manual . | . . . . Terminals 2 | . 2 . . Fabricators . | . . . . Repair Stations 3 | . . . 3 Recycling Units . | . . . . Scanalyzers 2 | . . 2 . Garrison Access . | . . . . Terminal Hacks 1 | . 1 . . Record 1 | . 1 . . Fabricator Hacks . | . . . . Repair Station Hacks 1 | . . . 1 Scan Component 1 | . . . 1 Recycling Unit Hacks . | . . . . Scanalyzer 2 | . . 2 . Insert Component 1 | . . 1 . Analyze 1 | . . 1 . Garrison Access Hacks . | . . . . Unauthorized Hacks . | . . . . Terminals . | . . . . Fabricators . | . . . . Repair Stations . | . . . . Recycling Units . | . . . . Scanalyzers . | . . . . Garrison Access . | . . . . Data Cores Recovered . | . . . . Used . | . . . . Hacking Detections 1 | . . . 1 Full Trace Events . | . . . . Feedback Events . | . . . . Feedback Blocked . | . . . . Robot Schematics Acquired . | . . . . Robots Built . | . . . . Authchips . | . . . . Time . | . . . . Total Robot Build Rating . | . . . . Part Schematics Acquired 1 | . . 1 . Parts Built . | . . . . Authchips . | . . . . Time . | . . . . Total Part Build Rating . | . . . . Parts Repaired . | . . . . Time . | . . . . Parts Recycled . | . . . . Recycled Matter . | . . . . Retrieved Matter . | . . . . Retrieved Components . | . . . . Parts Scanalyzed 1 | . . 1 . Part Schematics Acquired 1 | . . 1 . Parts Damaged . | . . . . Bothacking | -11 -10 -9 -8 ------------ Run | Yrd Mat Mat Mat Used RIF Installer . | . . . . Robots Hacked . | . . . . Non-combat . | . . . . Combat . | . . . . Robot Hacks Applied . | . . . . Relay Couplers Released . | . . . . Fabnet Peak Effective % . | . . . . Robots Rewired . | . . . . Allies Hacked . | . . . . Hacks Repelled . | . . . . Allies | -11 -10 -9 -8 -------- Run | Yrd Mat Mat Mat Total Allies . | . . . . Largest Group . | . . . . Highest-Rated Group . | . . . . Highest-Rated Ally . | . . . . Total Orders . | . . . . Ally Attacks . | . . . . Total Damage . | . . . . Kills . | . . . . Allies Corrupted . | . . . . Allies Melted . | . . . . Intel | -11 -10 -9 -8 ------- Run | Yrd Mat Mat Mat Robot Analysis Total . | . . . . Derelict Logs Recovered . | . . . . Drone Launches . | . . . . Drone Recoveries . | . . . . Exploration | -11 -10 -9 -8 ------------- Run | Yrd Mat Mat Mat Turns Passed 1389 | 66 293 668 362 Spaces Moved 715 | 41 165 338 171 Core 4 | 4 . . . Treads 711 | 37 165 338 171 Legs . | . . . . Wheels . | . . . . Hover . | . . . . Flight . | . . . . Fastest Speed 50 | 50 160 160 160 Average Speed 159 | 149 160 160 162 Slowest Speed 163 | 160 160 160 163 Overloaded Moves . | . . . . Propulsion Burnouts . | . . . . Robots Hopped . | . . . . Cave-ins Triggered . | . . . . Exploration Rate (%) 22 | 4 30 36 20 Regions Visited 3 Branch Regions . Pre-discovered Areas . | . . . . Known Exits Taken . | . . . . Unknown Exits Taken 3 | 1 1 1 . Scrap Searched . | . . . . Spaces Dug . | . . . . Terrain Destroyed 31 | . 20 . 11 Melee . | . . . . Projectile . | . . . . AOE 31 | . 20 . 11 Terrain Rammed . | . . . . Walls Destroyed . | . . . . Machines Disabled . | . . . . Actions | -11 -10 -9 -8 --------- Run | Yrd Mat Mat Mat Total 825 | 44 177 396 208 Wait . | . . . . Move 712 | 40 164 337 171 Hop . | . . . . Pick Up 7 | . . 3 4 Fast Attach 17 | 4 3 8 2 Attach 3 | . . 2 1 Detach . | . . . . Swap 4 | . . 3 1 Drop 3 | . . 2 1 Fire 76 | . 9 39 28 Melee . | . . . . Ram . | . . . . Kick . | . . . . Crush 3 | . 1 2 . Escape Stasis . | . . . . Rewire . | . . . . Trap . | . . . . Miscellaneous . | . . . . Route ------- -11/Scrapyard -10/Materials -9/Materials -8/Materials History --------- Turn | Location | Event 26 | -11/Scrapyard | Discovered new exit (range 16) 67 | -11/Scrapyard | Entered Materials 278 | -10/Materials | Discovered new exit (range 8) 313 | -10/Materials | Build established: Mutant 360 | -10/Materials | Entered another Materials area 360 | -9/Materials | Evolved 2 slots: Utility x2 879 | -9/Materials | Lost 4 parts (2n1u1w) 1001 | -9/Materials | Discovered new exit (range 5) 1028 | -9/Materials | Entered another Materials area 1028 | -8/Materials | Evolved 2 slots: Propulsion x1, Weapon x1 1297 | -8/Materials | Garrison activated, responded to threat 1390 | -8/Materials | Self-destructed Last Messages --------------- U-05 Engineer builds a Wall. R-06 Scavenger collects Lgt. Nuclear Core. Critical hit (Burn: +37). Power failure, Lgt. Nuclear Core shutdown. Overheating: Energy bleed (-19). K-01 Serf collects debris. U-05 Engineer lays Concrete. R-06 Scavenger collects Imp. Heat Sink. U-05 Engineer lays Concrete. K-01 Serf collects debris. U-05 Engineer builds a Wall. Overheating: Energy bleed (-19). K-01 Serf collects debris. U-05 Engineer lays Concrete. ALERT: Construction progress impeded, dispatching reinforcements to local area. U-05 Engineer lays Concrete. K-01 Serf collects debris. Particle Gun destroyed. U-05 Engineer lays Concrete. Map ----- +----------------------------------------------------+ | ?????????????????# ### / #???????????????? | | ################## + # ! #???????????????? | | # + # # #???????????????? | | # ########%# #???????????????? | | # =+ #???????????????? | | ######+##################*########???????????????? | | ?#* [ #???? ??????# # #???????????????? | | ?# #???" ????# # #???????????????? | | ?# """"""" #???" S"??#%#""" #???????????????? | | ?# """"""" #?""" "" # #"R #???????????????? | | ?# """"""" # + #""" #???????????????? | | ?# """"""" #???##+####### # #???????????????? | | ?# """"""" #???# %##/#########???????????? | | ?#?? #???# ###### #??????????? | | ????########???# #????# ######## ????? | | ???????????????# #????# ##??????????????????? | | ???????????????# #????#% ##??????????????????? | | ???????????????# ######+##+##??????????????????? | | ????############ # ! #???????????????????? | | ???# ]# # """ #???????????????????? | | ???# """ """ # # " " !!#???????????????????? | | ???# """ """ # # " " /= #???????????????????? | | ???# """ """ # # k !!!!#???????????????????? | | ???# # # !=!%#???????????????????? | | ???# + # " u!!*#???????????????????? | | ???# # # " %[@==!#???????????????????? | | ???############# #####g##########??????????????? | | ???????#[ !# ### r=% #?????????????? | | ???????# # ### * """ +?????????????? | | ???????# """ + T Y # """ ??????????????? | | ???????#! """ # ### + """ ??????????????? | | ???????# """ # #?# # #?????????????? | | ???????# ?### ###?# #? """ #?????????????? | | ???????##########+##### #? "?" #?????????????? | | ????????????# # #? "???????????????????? | | ????????????# # #?? ??????????????????? | | ????????????# """ # #??##??????????????????? | | ????????????#""""" [ + #??????????????????????? | | ????????????#""""" # #??????????????????????? | | ????????????#""""" # #??????????????????????? | | ????????????# """ # #??????????????????????? | | ????????????# # #??????????????????????? | | ????????????########### #??????????????????????? | | ??????????????????????# #??????????????????????? | | ??????????????????????# #??????????????????????? | | ??????????????????????# #??????????????????????? | | ??????????????????????# #??????????????????????? | | ??????????????????????# #??????????????????????? | | ??????????????????????# #??????????????????????? | | ??????????????????????# =%#??????????????????????? | +----------------------------------------------------+ Best States ------------- Heat Dissipation 45 Energy Generation 14 Energy Capacity 265 Matter Stores 300 Matter Capacity 300 Sight Range 16 Robot Scan Range 14 Terrain Scan Density 10 Armor Coverage 150 Evasion (%) 40 Targeting Accuracy 12 Recoil Reduction 3 Item Schematics ----------------- Lgt. Treads | -9/Materials | Scanalyzed Robot Schematics ------------------ None Fabricated ------------ Nothing Alien Tech Used ----------------- None Achievements -------------- It's Just You Troublemaker Challenges ------------ None Game ------ Seed MetafiberCommOptics Manual? 0 Play Time 00:15:01 Cumulative 1.7 hours Start 2025.03.22 @ 21:47:08 End 2025.03.22 @ 22:01:22 Sessions 1 Manual Loads 0 Difficulty Rogue Special Mode None Game No. 8 Rogue 8 Adventurer 0 Explorer 0 Win Type - Total 0 Types 0/0/0/0/0/0/0/0/0 Lore% 4 Gallery% 5 Achievement% 8 Wizard Run 0 Options --------- Layout 1 ASCII 0 Keyboard 0 Movement Mouse Keybinds 0 Fullscreen 1 Font 24/Smallcaps Map View 50x35 Zoom Use 0% Tactical HUD 0 Map Filters NONE Filters NONE Steam 1 RUN: 6e0936a8-e411-4c38-bfe2-8a0a90478909